bitfinex/quotes_ETHUSD_20241216
["timestamp","ask_amount","ask_price","bid_price","bid_amount"]
[1734389406396,0.15175904,4034.1,4033.4,0.7567]
[1734389406601,0.41357349,4034.0,4033.4,0.7567]
[1734389406818,0.41357349,4033.9,4033.4,0.7567]
[1734389407014,0.15175904,4034.1,4033.4,0.7567]
[1734389407218,0.41357346,4034.0,4033.4,0.7567]
[1734389407545,0.41357346,4033.9,4033.4,0.7567]
[1734389407771,0.18381041,4033.8,4033.4,0.7567]
[1734389407918,0.15175904,4034.1,4033.4,0.7567]
[1734389408117,0.41359237,4034.0,4033.4,0.7567]
[1734389408344,0.15175904,4034.1,4033.4,0.7567]
[1734389408345,0.41359237,4033.9,4033.4,0.7567]
[1734389408545,0.18381883,4033.8,4033.4,0.7567]
[1734389408846,0.15175904,4034.1,4033.4,0.7567]
[1734389409066,0.41363233,4034.0,4033.4,0.7567]
[1734389409213,0.41363233,4033.9,4033.4,0.7567]
[1734389409416,0.18383659,4033.8,4033.4,0.7567]
[1734389409745,0.15175904,4034.1,4033.4,0.7567]
[1734389409897,0.41368446,4034.0,4033.4,0.7567]
[1734389410097,0.18385976,4033.9,4033.4,0.7567]
[1734389410356,0.29413535,4034.6,4033.4,0.7567]
[1734389410652,0.92395787,4034.5,4033.4,0.7567]
[1734389410939,0.70791044,4034.4,4033.4,0.7567]
[1734389411148,0.41377509,4034.3,4033.4,0.7567]
[1734389411332,0.41377509,4034.2,4033.4,0.7567]
[1734389411531,0.41377509,4034.1,4033.4,0.7567]
[1734389411829,0.18390014,4034.0,4033.4,0.7567]
[1734389412032,0.8327,4034.7,4033.4,0.7567]
[1734389412346,1.03363898,4034.8,4033.4,0.7567]
[1734389412347,0.8327,4034.5,4033.4,0.7567]
[1734389412502,0.8327,4034.3,4032.9,0.12192138]
[1734389412704,0.55,4034.0,4032.4,0.7567]
[1734389412938,0.55,4034.0,4032.4,0.88170296]
[1734389412939,2.39203087,4033.9,4032.4,0.88170296]
[1734389413146,0.8327,4033.7,4032.4,0.88170296]
[1734389413341,0.7748,4033.5,4032.4,0.88170296]
[1734389413547,0.41392777,4033.4,4032.4,0.88170296]
[1734389413714,0.41392777,4033.3,4032.4,0.88170296]
[1734389414043,0.41392777,4033.2,4032.4,0.88170296]
[1734389414245,1.06913575,4033.5,4032.4,0.88170296]
[1734389414246,0.41411831,4033.1,4032.4,0.88170296]
[1734389414549,1.18904659,4033.0,4031.6,0.8155]
[1734389414717,0.70858234,4032.9,4031.6,0.8155]
[1734389415047,0.41424659,4032.8,4031.6,0.8155]
[1734389415343,0.7748,4033.0,4031.6,0.8155]
[1734389415344,0.23012452,4032.7,4031.6,0.8155]
[1734389415515,0.41425231,4032.6,4031.6,0.8155]
[1734389415715,0.7748,4033.0,4031.6,0.8155]
[1734389415953,0.52460817,4032.9,4031.6,0.8155]
[1734389416147,0.83862016,4032.8,4031.6,0.8155]
[1734389416306,0.18408387,4032.7,4031.6,0.8155]
[1734389416501,0.18408387,4032.6,4031.6,0.8155]
[1734389416734,0.12994082,4032.8,4031.6,0.8155]
[1734389416735,0.41418881,4032.5,4031.6,0.8155]
[1734389416936,0.18408387,4032.4,4032.2,3.0]
[1734389417235,0.42447502,4032.8,4031.6,0.8155]
[1734389417468,0.41418833,4032.7,4031.6,0.8155]
[1734389417738,0.41418833,4032.6,4031.6,0.8155]
[1734389417929,0.41418833,4032.5,4031.6,0.8155]
[1734389418134,0.41418833,4032.4,4031.6,0.8155]
[1734389418334,0.42447502,4032.8,4031.6,0.8155]
[1734389418335,0.12994082,4032.8,4031.6,0.8155]
[1734389418532,0.41393511,4032.7,4031.6,0.8155]
[1734389418737,0.7748,4032.5,4031.1,0.8155]
[1734389418984,1.458114,4032.8,4031.1,0.8155]
[1734389418985,0.7748,4032.3,4031.1,0.8155]
[1734389419131,0.41393545,4032.2,4031.1,0.8155]
[1734389419336,0.7748,4032.3,4031.1,0.8155]
[1734389419337,0.41393545,4032.1,4031.1,0.8155]
[1734389419577,0.41393545,4032.0,4031.1,0.8155]
[1734389419777,0.7748,4032.3,4031.1,0.8155]
[1734389420050,0.5410727,4032.2,4031.1,0.8155]
[1734389420278,0.41374122,4032.1,4031.1,0.8155]
[1734389420585,0.18388493,4032.0,4031.3,3.0]
[1734389420748,0.12733148,4032.2,4031.1,0.8155]
[1734389421079,0.41352565,4032.1,4031.1,0.8155]
[1734389421282,0.7748,4031.9,4031.0,0.12351962]
[1734389421485,0.7748,4031.7,4030.5,0.8155]
[1734389421699,0.18367831,4031.6,4030.5,0.8155]
[1734389422252,0.41327132,4031.5,4030.5,0.8155]
[1734389422479,0.7748,4031.7,4030.5,0.8155]
[1734389422695,0.41291457,4031.6,4030.5,0.8155]
[1734389422992,0.18351797,4031.5,4030.5,0.8155]
[1734389423153,0.7748,4031.7,4030.6,3.0]
[1734389423350,0.7748,4031.7,4030.7,3.0]
[1734389423351,0.41283243,4031.6,4030.7,3.0]
[1734389423551,0.7748,4031.7,4030.7,3.0]
[1734389423754,0.18335471,4031.6,4030.7,3.0]
[1734389424181,0.7748,4031.5,4030.3,0.31299414]
[1734389425002,0.7748,4031.5,4030.2,1.10378633]
[1734389425684,0.7748,4031.5,4030.2,1.22582478]
[1734389426090,0.7748,4031.5,4030.2,0.93753845]
[1734389427354,0.7748,4031.5,4030.4,3.0]
[1734389427770,0.7748,4031.5,4030.2,0.93753845]
[1734389428197,0.7748,4031.5,4030.2,0.8155]
[1734389428395,0.7748,4031.5,4030.4,3.0]
[1734389429393,0.7748,4031.5,4030.2,0.8155]
[1734389429601,0.7748,4031.5,4030.4,3.0]
[1734389430019,0.7748,4031.5,4030.2,0.8155]
[1734389430502,0.7748,4031.5,4030.4,3.0]
[1734389430978,0.7748,4031.5,4030.5,0.8256]
[1734389435095,0.7748,4031.5,4030.4,3.0]
[1734389435301,0.7993,4031.8,4030.5,0.7999]
[1734389435469,0.7993,4031.8,4030.5,1.11289414]
[1734389435870,0.7993,4031.8,4030.7,3.0]
[1734389436316,0.7993,4031.8,4030.5,1.11289414]
[1734389436497,0.7993,4031.8,4030.7,3.0]
[1734389436906,0.7993,4031.8,4030.5,1.11289414]
[1734389437279,0.7993,4031.8,4030.7,3.0]
[1734389438305,0.7993,4031.8,4030.5,1.11289414]
[1734389438915,0.7993,4031.8,4030.7,3.0]
[1734389439619,0.7993,4031.8,4030.5,1.11289414]
[1734389439818,0.7993,4031.8,4030.7,3.0]
[1734389440418,0.22911737,4031.7,4030.7,3.0]
[1734389440601,0.7993,4031.8,4030.7,3.0]
[1734389440814,0.22914388,4031.7,4030.7,3.0]
[1734389441016,0.7993,4031.8,4030.7,3.0]
[1734389441212,0.22914049,4031.7,4030.5,1.11289414]
[1734389441415,0.22914049,4031.6,4030.7,3.0]
[1734389441615,0.7993,4031.8,4030.7,3.0]
[1734389441920,0.22931554,4031.7,4030.7,3.0]
[1734389442142,0.22931554,4031.6,4030.7,3.0]
[1734389442280,0.7993,4031.8,4030.5,1.11289414]
[1734389442479,0.22932905,4031.7,4030.7,3.0]
[1734389442780,0.7993,4031.5,4030.7,3.0]
[1734389442989,0.22932905,4031.4,4030.7,3.0]
[1734389443174,0.7993,4031.5,4030.7,3.0]
[1734389443378,0.22963966,4031.4,4030.3,0.55]
[1734389443624,0.7993,4031.5,4030.7,3.0]
[1734389443780,0.22962468,4031.4,4030.7,3.0]
[1734389444133,0.7993,4031.5,4030.3,0.55]
[1734389444337,0.22962919,4031.4,4030.7,3.0]
[1734389444474,0.22962919,4031.3,4030.7,3.0]
[1734389444675,0.7993,4031.5,4030.3,0.55]
[1734389444980,0.22979323,4031.4,4030.3,0.55]
[1734389445181,0.7993,4031.5,4030.2,0.7999]
[1734389445419,0.22980221,4031.4,4030.2,0.7999]
[1734389445738,0.22988191,4031.3,4030.2,0.7999]
[1734389445946,0.99069023,4031.2,4030.2,0.7999]
[1734389446164,0.22989023,4031.1,4030.5,3.0]
[1734389446304,0.7608,4031.2,4030.2,0.7999]
[1734389446487,0.22989227,4031.1,4030.5,3.0]
[1734389446694,0.22989227,4031.0,4030.5,3.0]
[1734389446900,0.22989227,4031.0,4030.3,0.31299414]
[1734389446901,0.7608,4031.2,4030.3,0.31299414]
[1734389447097,0.22998981,4031.1,4030.5,3.0]
[1734389447303,0.22998981,4031.0,4030.5,3.0]
[1734389447529,0.22998981,4030.9,4030.3,0.31299414]
[1734389447712,0.7608,4031.2,4030.3,0.31299414]
[1734389447961,0.52463902,4031.1,4030.5,3.0]
[1734389448239,0.23010534,4031.0,4030.3,0.31299414]
[1734389448441,0.23010534,4030.9,4030.3,0.31299414]
[1734389448604,0.23010534,4030.8,4030.5,3.0]
[1734389448810,0.29471253,4031.0,4030.3,0.31299414]
[1734389449123,0.23024419,4030.9,4030.5,3.0]
[1734389449313,0.7608,4031.2,4030.5,3.0]
[1734389449314,0.23024419,4030.8,4030.5,3.0]
[1734389449637,0.29479056,4031.1,4030.5,3.0]
[1734389449940,0.52509484,4031.0,4030.3,0.31299414]
[1734389450124,0.23030428,4030.9,4030.5,3.0]
[1734389450323,0.23030428,4030.8,4030.3,0.31299414]
[1734389450528,0.23030428,4030.7,4030.5,3.0]
[1734389450737,0.29489967,4031.1,4030.3,0.31299414]
[1734389450935,0.52529016,4031.0,4030.5,3.0]
[1734389451244,0.52529016,4030.9,4030.3,0.31299414]
[1734389451444,0.52529016,4030.8,4030.5,3.0]
[1734389451746,0.23039049,4030.7,4030.3,0.31299414]
[1734389451964,0.23039049,4030.6,4030.5,3.0]
[1734389452136,0.23039049,4030.6,4030.3,0.31299414]
[1734389452327,0.7608,4031.2,4030.3,0.31299414]
[1734389452528,0.5255678,4031.1,4030.5,3.0]
[1734389452739,0.5255678,4031.0,4030.3,0.31299414]
[1734389452947,0.5255678,4030.9,4030.5,3.0]
[1734389453137,0.5255678,4030.8,4030.5,3.0]
[1734389453453,0.23051209,4030.7,4030.3,0.31299414]
[1734389453650,0.23051209,4030.6,4030.5,3.0]
[1734389453955,0.23051209,4030.6,4030.3,0.31299414]
[1734389454268,0.7608,4031.2,4030.3,0.31299414]
[1734389454269,0.23051209,4030.5,4030.3,0.31299414]
[1734389454489,0.29503365,4031.1,4030.3,0.31299414]
[1734389454771,0.7608,4031.2,4030.3,0.31299414]
[1734389454772,0.52552935,4031.0,4030.5,3.0]
[1734389454922,0.52552935,4030.9,4030.5,3.0]
[1734389455123,0.7608,4031.2,4030.5,3.0]
[1734389455364,0.7608,4031.2,4030.3,0.31299414]
[1734389455365,0.52553139,4031.1,4030.3,0.31299414]
[1734389455570,0.7608,4031.2,4030.5,3.0]
[1734389455736,0.5255177,4031.1,4030.3,0.31299414]
[1734389455941,0.7608,4031.2,4030.5,3.0]
[1734389455942,0.5255177,4031.0,4030.5,3.0]
[1734389456138,0.5255177,4030.9,4030.3,0.31299414]
[1734389456336,0.5255177,4030.8,4030.5,3.0]
[1734389456544,0.23049022,4030.7,4030.3,0.31299414]
[1734389456738,0.7608,4031.2,4030.5,3.0]
[1734389456972,0.52549538,4031.1,4030.3,0.31299414]
[1734389457168,0.52549538,4031.0,4030.5,3.0]
[1734389457346,0.52549538,4030.9,4030.3,0.31299414]
[1734389457668,0.23048043,4030.8,4030.5,3.0]
[1734389457833,0.23048043,4030.8,4030.3,0.31299414]
[1734389457834,0.23048043,4030.7,4030.3,0.31299414]
[1734389458028,0.29501768,4031.1,4030.5,3.0]
[1734389458256,0.52550052,4031.0,4030.5,3.0]
[1734389458466,0.7608,4031.2,4030.3,0.31299414]
[1734389458467,0.52549804,4030.9,4030.3,0.31299414]
[1734389458767,0.23048164,4030.8,4030.3,0.31299414]
[1734389459067,0.23048164,4030.7,4030.5,3.0]
[1734389459290,0.7608,4031.2,4030.3,0.31299414]
[1734389459291,0.23048164,4030.6,4030.3,0.31299414]
[1734389459573,0.29499362,4031.1,4030.3,0.31299414]
[1734389459781,0.7608,4031.2,4030.5,3.0]
[1734389459782,0.52545783,4031.0,4030.5,3.0]
[1734389459973,0.52545783,4030.9,4030.3,0.31299414]
[1734389460178,0.23046421,4030.8,4030.3,0.31299414]
[1734389460489,0.7608,4031.2,4030.3,0.31299414]
[1734389460490,0.23046421,4030.7,4030.3,0.31299414]
[1734389460683,0.23046421,4030.6,4030.3,0.31299414]
[1734389460878,0.29498853,4031.1,4030.3,0.31299414]
[1734389461080,0.7608,4031.2,4030.3,0.31299414]
[1734389461264,0.29498901,4031.1,4030.3,0.31299414]
[1734389461467,0.52544918,4031.0,4030.3,0.31299414]
[1734389461673,0.52544918,4030.9,4030.3,0.31299414]
[1734389461873,0.23046017,4030.8,4030.3,0.31299414]
[1734389462085,0.23046017,4030.7,4030.3,0.31299414]
[1734389462251,1.03363898,4031.4,4030.4,1.10378633]
[1734389462252,0.29498415,4031.1,4030.4,1.10378633]
[1734389462452,1.70365884,4031.9,4030.6,0.55]
[1734389462453,0.23046507,4031.0,4030.6,0.55]
[1734389462657,0.803,4031.7,4030.6,0.55]
[1734389462658,0.29500621,4031.6,4030.6,0.55]
[1734389463019,0.803,4031.7,4030.8,0.55]
[1734389463020,0.23048099,4031.5,4030.8,0.55]
[1734389463201,0.23048099,4031.4,4030.8,0.55]
[1734389463348,0.803,4031.7,4030.8,3.55]
[1734389463549,0.23040723,4031.6,4030.9,0.8155]
[1734389463777,0.23040723,4031.5,4030.9,0.8155]
[1734389463989,0.803,4031.7,4030.9,0.84030547]
[1734389464194,0.23040975,4031.6,4030.9,0.84030547]
[1734389464354,0.23040242,4031.5,4030.9,0.8155]
[1734389464551,0.803,4031.7,4030.9,0.8155]
[1734389464906,0.23035458,4031.6,4030.9,0.8155]
[1734389465203,0.803,4031.7,4030.9,1.85320854]
[1734389465506,0.23040201,4031.6,4030.9,1.85320854]
[1734389465659,0.803,4031.7,4030.9,1.85320854]
[1734389466008,0.23034285,4031.6,4030.9,1.85320854]
[1734389466294,1.03363898,4032.1,4031.0,1.58770854]
[1734389466295,0.29483788,4032.0,4031.0,1.58770854]
[1734389466495,0.23029328,4031.9,4031.0,1.58770854]
[1734389466694,0.23029328,4031.8,4031.0,1.58770854]
[1734389466896,0.803,4032.1,4031.0,1.58770854]
[1734389467218,1.08365757,4032.0,4031.2,0.55]
[1734389467498,1.08365757,4032.0,4031.1,0.55]
[1734389467499,0.23031293,4032.0,4031.1,0.55]
[1734389467806,0.23031293,4031.9,4031.1,0.55]
[1734389467958,0.23031293,4031.8,4031.1,0.55]
[1734389468154,0.29473391,4032.0,4031.1,0.55]
[1734389468354,0.23024489,4031.9,4031.0,0.55]
[1734389468554,0.23024489,4031.8,4031.0,0.55]
[1734389468759,0.29473391,4032.0,4031.0,0.55]
[1734389468977,1.08346293,4031.9,4031.0,0.55]
[1734389469187,0.2302079,4031.8,4031.0,0.55]
[1734389469504,0.29473391,4032.0,4031.0,0.55]
[1734389469653,0.23021529,4031.9,4031.0,0.55]
[1734389469857,0.23021529,4031.8,4031.0,0.55]
[1734389470054,0.29473391,4032.0,4031.0,0.55]
[1734389470055,0.23021648,4031.7,4031.0,0.55]
[1734389470255,0.29473391,4032.0,4031.0,0.55]
[1734389470480,0.23020206,4031.9,4031.0,0.55]
[1734389470701,0.23020206,4031.8,4031.0,0.55]
[1734389471004,1.09765837,4032.1,4031.0,0.55]
[1734389471307,1.08334277,4032.0,4031.0,0.55]
[1734389471459,0.23019159,4031.9,4031.0,0.55]
[1734389471661,0.23019159,4031.8,4031.0,0.55]
[1734389472004,1.09765837,4032.1,4031.0,0.55]
[1734389472186,0.23024434,4032.0,4031.0,0.55]
[1734389472386,0.23024434,4031.9,4031.0,0.55]
[1734389472593,1.09765837,4032.1,4031.0,0.55]
[1734389472594,0.23024434,4031.8,4031.0,0.55]
[1734389472898,1.09765837,4032.1,4031.0,0.55]
[1734389472899,0.803,4032.1,4031.0,0.55]
[1734389473135,0.23022471,4032.0,4031.0,0.55]
[1734389473284,0.23022471,4031.9,4031.0,0.55]
[1734389473484,0.803,4032.1,4031.2,0.55]
[1734389473714,0.23021312,4032.0,4031.2,0.55]
[1734389474102,0.23021312,4031.9,4031.2,0.55]
[1734389474346,1.01612974,4032.1,4031.2,0.55]
[1734389474636,0.23017507,4032.0,4031.2,0.55]
[1734389474934,0.23017507,4031.9,4031.3,0.7931]
[1734389475136,0.21312974,4032.1,4031.3,0.7931]
[1734389475291,0.23016989,4032.0,4031.3,0.7931]
[1734389475489,0.23016989,4031.9,4031.3,0.7931]
[1734389475717,1.32829269,4032.3,4031.4,0.55]
[1734389475916,1.32829269,4032.3,4031.5,0.7931]
[1734389475917,0.23015425,4032.2,4031.5,0.7931]
[1734389476118,0.29465371,4032.6,4031.6,0.02480123]
[1734389476320,0.29465371,4032.6,4031.5,0.7931]
[1734389476321,2.16802078,4032.5,4031.5,0.7931]
[1734389476637,0.23011979,4032.4,4031.5,0.7931]
[1734389476940,0.23011979,4032.3,4031.5,0.7931]
[1734389477108,1.0847699,4032.5,4031.5,0.7931]
[1734389477435,0.23013046,4032.4,4031.6,0.02480131]
[1734389477645,0.23013046,4032.3,4031.6,0.55]
[1734389477821,0.7839,4032.5,4031.6,0.55]
[1734389477991,0.23011501,4032.4,4031.6,0.55]
[1734389478223,0.23011501,4032.3,4031.6,0.55]
[1734389478464,0.7839,4032.5,4031.6,0.55]
[1734389478665,0.23008617,4032.4,4031.6,0.55]
[1734389478968,0.23008617,4032.3,4031.7,0.7931]
[1734389479171,0.29456003,4032.7,4032.0,3.0]
[1734389479471,0.45429241,4032.6,4031.8,0.02479989]
[1734389479642,0.23008843,4032.5,4031.7,0.7931]
[1734389479835,0.23008843,4032.4,4032.1,0.7931]
[1734389480069,1.20840085,4032.8,4032.1,0.7931]
[1734389480235,0.23011065,4032.7,4032.1,0.7931]
[1734389480443,0.12994082,4032.8,4032.1,0.7931]
[1734389480638,0.23008486,4032.7,4032.1,0.7931]
[1734389480837,0.23008486,4032.6,4032.1,0.7931]
[1734389482870,0.23008486,4032.5,4032.1,0.7931]
[1734389483071,0.12994082,4032.8,4032.1,0.7931]
[1734389483368,0.230107,4032.7,4032.1,0.7931]
[1734389483574,0.230107,4032.6,4032.1,0.7931]
[1734389483726,0.12994082,4032.8,4032.1,0.7931]
[1734389483926,0.2300994,4032.7,4032.1,0.7931]
[1734389484158,0.2300994,4032.6,4032.1,0.7931]
[1734389484327,0.29452984,4033.0,4032.2,0.02479802]
[1734389484665,1.81753898,4033.4,4032.2,0.02479802]
[1734389484666,0.29452984,4033.3,4032.3,0.7931]
[1734389484868,1.07842984,4033.4,4032.3,0.7931]
[1734389485024,0.21120688,4033.3,4032.3,0.7931]
[1734389486431,0.23009809,4033.2,4032.3,0.7931]
[1734389486632,0.23009809,4033.1,4032.3,0.7931]
[1734389486827,0.21120688,4033.3,4032.3,0.9164883]
[1734389487177,0.23005816,4033.2,4032.3,0.9164883]
[1734389488070,0.23005816,4033.2,4032.5,0.7931]
[1734389488723,0.23005816,4033.2,4032.4,0.55]
[1734389488724,0.23005816,4033.2,4032.6,0.02479522]
[1734389488955,0.23005816,4033.2,4032.7,0.7997]
[1734389490238,0.23005816,4033.2,4033.1,0.7997]
[1734389490441,0.29447444,4033.7,4033.1,0.7997]
[1734389491654,0.7517,4034.2,4033.1,0.7997]
[1734389499105,0.7517,4034.2,4033.1,3.7997]
[1734389499304,0.7517,4034.2,4033.1,0.7997]
[1734389499522,0.7517,4034.2,4033.1,3.7997]
[1734389500595,0.7517,4034.2,4032.6,0.1244626]
[1734389500826,0.7517,4034.2,4032.2,0.7997]
[1734389501030,2.50472722,4034.6,4032.2,0.7997]
[1734389501031,0.7517,4034.0,4032.2,0.7997]
[1734389501319,0.7517,4033.8,4032.2,0.7997]
[1734389501518,0.7517,4033.6,4032.2,0.7997]
[1734389501690,1.72899935,4034.1,4031.4,0.7997]
[1734389501691,0.7517,4033.4,4031.4,0.7997]
[1734389501895,0.7517,4033.2,4031.4,0.7997]
[1734389502089,1.03363898,4033.4,4031.4,0.7997]
[1734389502090,0.7517,4033.0,4031.4,0.7997]
[1734389502292,0.7517,4032.8,4031.4,0.7997]
[1734389502490,0.41375825,4032.7,4031.4,0.7997]
[1734389502691,0.41375825,4032.6,4031.4,0.7997]
[1734389502898,0.41375825,4032.5,4031.4,0.7997]
[1734389503093,0.41375825,4032.4,4031.4,0.7997]
[1734389503406,0.7517,4032.8,4031.4,0.7997]
[1734389503407,0.41375825,4032.3,4031.4,0.7997]
[1734389503592,0.33432956,4033.1,4031.4,0.7997]
[1734389503593,0.18387572,4032.2,4031.4,0.7997]
[1734389503794,1.23160029,4032.1,4031.4,0.7997]
[1734389503993,0.8179,4032.1,4031.4,0.7997]
[1734389505803,0.8179,4032.1,4031.1,1.27495267]
[1734389506111,0.8179,4032.1,4031.1,1.14956081]
[1734389506497,0.22977744,4032.0,4031.1,1.14956081]
[1734389506703,0.8179,4032.1,4031.1,1.14956081]
[1734389506915,0.22977529,4032.0,4031.1,1.14956081]
[1734389507116,0.8179,4032.1,4031.1,1.14956081]
[1734389507290,0.22977447,4032.0,4031.1,1.14956081]
[1734389507484,0.8179,4032.1,4031.1,1.14956081]
[1734389507810,0.22974007,4032.0,4031.1,1.14956081]
[1734389508009,0.8179,4032.1,4031.1,1.14956081]
[1734389508184,0.2297405,4032.0,4031.1,1.14956081]
[1734389508384,0.8179,4032.1,4031.1,1.14956081]
[1734389509021,0.22970955,4032.0,4031.1,1.14956081]
[1734389509225,0.8179,4032.1,4031.1,1.14956081]
[1734389510403,0.22967508,4032.0,4031.1,1.14956081]
[1734389510617,0.8179,4032.1,4031.1,0.8224]
[1734389510930,0.22963338,4032.0,4031.1,0.8224]
[1734389511133,0.8179,4032.1,4031.1,0.8224]
[1734389514635,0.2295367,4032.0,4031.1,0.8224]
[1734389514799,0.8179,4032.1,4031.1,0.8224]
[1734389515001,0.22953935,4032.0,4031.1,0.8224]
[1734389515231,0.8179,4032.1,4031.1,0.8224]
[1734389515527,0.8179,4031.9,4030.8,0.8224]
[1734389515845,0.22952663,4031.8,4030.8,0.8224]
[1734389515993,0.22947772,4031.7,4030.8,0.8224]
[1734389516198,0.8179,4031.9,4030.8,0.8224]
[1734389516397,0.22947252,4031.8,4030.8,0.8224]
[1734389516592,0.22947252,4031.7,4030.8,0.8224]
[1734389516954,0.8179,4031.9,4030.8,0.8224]
[1734389517107,0.22943938,4031.8,4030.8,0.8224]
[1734389517315,0.22943315,4031.7,4030.8,0.8224]
[1734389517511,0.8179,4031.9,4030.8,0.8224]
[1734389517711,0.22938396,4031.8,4030.8,0.8224]
[1734389517920,0.8179,4031.9,4030.8,0.8224]
[1734389518120,0.22938446,4031.8,4030.8,0.8224]
[1734389518323,0.8179,4031.9,4030.8,0.8224]
[1734389518537,0.2293655,4031.8,4030.8,0.8224]
[1734389518736,0.8179,4031.9,4030.8,0.8224]
[1734389519042,0.22934204,4031.8,4030.8,0.8224]
[1734389519253,0.22934204,4031.7,4030.8,0.8224]
[1734389519397,0.8179,4031.9,4030.8,0.8224]
[1734389519599,0.22930619,4031.8,4030.8,0.8224]
[1734389519800,0.22930619,4031.7,4030.8,0.8224]
[1734389520028,0.8179,4031.9,4030.8,0.8224]
[1734389520336,0.22930694,4031.8,4030.8,0.8224]
[1734389520537,0.22930694,4031.7,4030.8,0.8224]
[1734389520715,0.8179,4031.9,4030.8,0.8224]
[1734389521036,0.22931764,4031.8,4030.8,0.8224]
[1734389521239,0.22931764,4031.7,4030.8,0.8224]
[1734389521423,0.8179,4031.9,4030.8,0.8224]
[1734389521629,0.22934544,4031.8,4030.8,0.8224]
[1734389521826,0.22934544,4031.7,4030.8,0.8224]
[1734389521995,0.8179,4031.9,4030.8,0.8224]
[1734389522340,0.22932837,4031.8,4030.8,0.8224]
[1734389522545,0.22932837,4031.7,4030.8,0.8224]
[1734389522694,0.22932837,4031.6,4030.8,0.8224]
[1734389522897,0.8179,4031.9,4030.8,0.8224]
[1734389523121,0.22934521,4031.8,4030.8,0.8224]
[1734389523328,0.8179,4031.9,4030.8,0.8224]
[1734389523329,0.22934521,4031.7,4030.8,0.8224]
[1734389523636,0.22934521,4031.6,4030.8,0.8224]
[1734389523838,0.8179,4031.9,4030.8,0.8224]
[1734389524044,0.2293615,4031.8,4030.8,0.8224]
[1734389524541,0.22940327,4031.7,4030.8,0.8224]
[1734389524746,0.22940327,4031.6,4030.8,0.8224]
[1734389524907,0.8179,4031.9,4030.8,0.8224]
[1734389525107,0.22939833,4031.8,4030.8,0.8224]
[1734389525411,0.22939833,4031.7,4030.8,0.8224]
[1734389525613,0.22939833,4031.6,4030.8,0.8224]
[1734389525938,0.22944888,4031.5,4030.8,0.8224]
[1734389526141,0.8179,4031.9,4030.8,0.8224]
[1734389526347,0.22945394,4031.8,4030.8,0.8224]
[1734389526644,0.22945394,4031.7,4030.8,0.8224]
[1734389526843,0.22945394,4031.6,4030.8,0.8224]
[1734389526999,0.22945394,4031.5,4030.8,0.8224]
[1734389527207,0.8179,4031.9,4030.8,0.8224]
[1734389527442,0.22964416,4031.8,4030.8,0.8224]
[1734389527754,0.22964416,4031.7,4030.8,0.8224]
[1734389527900,0.22964416,4031.6,4030.8,0.8224]
[1734389528103,0.22964416,4031.5,4030.8,0.8224]
[1734389528343,0.22964416,4031.4,4030.8,0.8224]
[1734389528545,0.22964416,4031.3,4030.8,0.8224]
[1734389528754,0.29363461,4031.8,4030.8,0.8224]
[1734389528755,0.22964416,4031.2,4030.8,0.8224]
[1734389528916,0.8179,4031.9,4030.8,0.8224]
[1734389528917,0.29363461,4031.7,4030.8,0.8224]
[1734389529109,0.22974426,4031.6,4030.8,0.8224]
[1734389529441,0.8179,4031.9,4030.8,0.8224]
[1734389529442,0.22974426,4031.5,4030.8,0.8224]
[1734389529647,0.22974426,4031.4,4030.8,0.8224]
[1734389529833,0.8179,4031.9,4030.8,0.8224]
[1734389529834,0.22974426,4031.3,4030.8,0.8224]
[1734389530039,0.22974426,4031.2,4030.8,0.8224]
[1734389530239,0.22974426,4031.1,4030.8,0.8224]
[1734389530551,0.8188,4031.7,4030.8,0.8224]
[1734389530767,0.8188,4031.7,4030.2,0.12251968]
[1734389530768,0.52453159,4031.6,4030.4,0.8113]
[1734389530917,0.65886475,4031.5,4030.4,0.8113]
[1734389531112,0.52453159,4031.4,4030.4,0.8113]
[1734389531351,0.52453159,4031.3,4030.4,0.8113]
[1734389531513,0.52453159,4031.2,4030.4,0.8113]
[1734389531851,0.23005589,4031.1,4030.4,0.8113]
[1734389532050,0.23005589,4031.0,4030.4,0.8113]
[1734389532352,0.23005589,4030.9,4030.4,0.8113]
[1734389532515,0.2944757,4031.4,4030.4,0.8113]
[1734389532716,0.52464473,4031.3,4030.4,0.8113]
[1734389533056,0.13433316,4031.5,4030.4,0.8113]
[1734389533057,0.8188,4031.1,4030.4,0.8113]
[1734389533227,0.3645135,4031.0,4030.4,0.8113]
[1734389533432,0.23016903,4030.9,4030.4,0.8113]
[1734389533741,0.23016903,4030.8,4030.4,0.8113]
[1734389533941,0.2946134,4031.8,4030.4,0.8113]
[1734389534143,0.52479718,4031.7,4030.2,0.7743]
[1734389534449,0.6530769,4031.6,4030.8,0.7743]
[1734389534670,0.52479718,4031.5,4030.8,0.7743]
[1734389534828,0.52479718,4031.4,4030.8,0.7743]
[1734389535024,0.52479718,4031.3,4030.8,0.7743]
[1734389535276,0.23018378,4031.2,4030.8,0.7743]
[1734389535442,0.23018378,4031.1,4030.8,0.7743]
[1734389535783,0.23018378,4031.0,4030.8,0.7743]
[1734389536068,0.2946134,4031.5,4030.8,0.7743]
[1734389536254,0.52484155,4031.4,4030.8,0.7743]
[1734389536453,0.52484155,4031.3,4030.8,0.7743]
[1734389536671,0.12827972,4031.6,4030.8,0.7743]
[1734389536672,0.52484155,4031.2,4030.8,0.7743]
[1734389536834,0.52494677,4031.2,4030.8,0.7743]
[1734389537046,0.23022815,4031.1,4030.8,0.7743]
[1734389537241,0.23022815,4031.0,4030.8,0.7743]
[1734389537456,0.23022815,4030.9,4030.8,0.7743]
[1734389537857,0.2947553,4031.3,4030.8,0.7743]
[1734389538095,0.52505142,4031.2,4030.8,0.7743]
[1734389538381,0.23029612,4031.1,4030.8,0.7743]
[1734389538587,0.23029612,4031.0,4030.8,0.7743]
[1734389538785,0.2947553,4031.3,4030.8,0.7743]
[1734389538974,0.52507653,4031.2,4030.8,0.7743]
[1734389539175,0.23032123,4031.1,4030.8,0.7743]
[1734389539357,0.23032123,4031.0,4030.8,0.7743]